fUSD/lending_fUSD_20250414
["ID","MTS","AMOUNT","RATE_DAILY","PERIOD"]
[357951301,1744613445745,-300.0,0.00019784,2]
[357951303,1744613445754,-147886.51796176,0.00019786,2]
[357951305,1744613445763,-5777.65364322,0.00019786,2]
[357951307,1744613445773,-12773.35948606,0.00019787,2]
[357951309,1744613445782,-500.0,0.00019791,2]
[357951311,1744613445791,-11411.54725719,0.00019792,2]
[357951313,1744613445802,-8796.67179238,0.00019794,2]
[357951315,1744613445812,-1027.201914,0.00019799,2]
[357951317,1744613445822,-966.156,0.000198,2]
[357951319,1744613445831,-854.3650373,0.00019806,2]
[357951321,1744613445840,-1217.21778427,0.00019808,2]
[357951323,1744613445850,-1217.21778427,0.00019839,2]
[357951325,1744613445859,-500.0,0.00019863,2]
[357951327,1744613445868,-500.0,0.00019863,2]
[357951329,1744613445878,-500.0,0.00019863,2]
[357951331,1744613445887,-500.0,0.00019863,2]
[357951333,1744613445895,-356.55567055,0.00019863,2]
[357951335,1744613445904,-500.0,0.00019863,2]
[357951337,1744613445914,-500.0,0.00019863,2]
[357951339,1744613445922,-500.0,0.00019863,2]
[357951341,1744613445932,-500.0,0.00019863,2]
[357951342,1744613445941,-500.0,0.00019863,2]
[357951345,1744613445952,-500.0,0.00019863,2]
[357951346,1744613445961,-500.0,0.00019863,2]
[357951348,1744613445971,-250.0,0.00019863,2]
[357951350,1744613445980,-500.0,0.00019863,2]
[357951353,1744613445990,-500.0,0.00019863,2]
[357951354,1744613445999,-500.0,0.00019863,2]
[357951356,1744613446008,-500.0,0.00019863,2]
[357951358,1744613446018,-500.0,0.00019863,2]
[357951360,1744613446031,-500.0,0.00019863,2]
[357951362,1744613446041,-1217.21778427,0.00019869,2]
[357951364,1744613446051,-194.36210043,0.0001989,2]
[357951366,1744613446061,-333.66443937,0.00019899,2]
[357951368,1744613446072,-159.98608336,0.000199,2]
[357951370,1744613446081,-409.48630944,0.000199,2]
[357951372,1744613446091,-500.19849729,0.000199,2]
[357951374,1744613446102,-187.0,0.000199,2]
[357951376,1744613446111,-1217.21778427,0.000199,2]
[357951378,1744613446122,-168.90478809,0.000199,2]
[357951381,1744613446132,-188.96751297,0.000199,2]
[357951383,1744613446142,-387.32897571,0.0001992,2]
[357951385,1744613446150,-45887.64283166,0.00019954,2]
[357951386,1744613446159,-8898.0,0.00019973,2]
[357951388,1744613446169,-501.87989479,0.00019973,2]
[357951390,1744613446179,-323.6451562,0.00019973,2]
[357951393,1744613446188,-504.0037658,0.00019973,2]
[357951395,1744613446198,-500.0,0.00019973,2]
[357951397,1744613446208,-500.0,0.00019973,2]
[357951398,1744613446217,-328.9385341,0.00019973,2]
[357951401,1744613446227,-500.0,0.00019973,2]
[357951403,1744613446237,-199.67832633,0.0001998,2]
[357951405,1744613446247,-224614.55680089,0.0001999,2]
[357951407,1744613446257,-182.47121173,0.0001999,2]
[357951409,1744613446267,-992.69489723,0.0001999,2]
[357951411,1744613446277,-151.0,0.0001999,2]
[357951413,1744613446287,-365.64298033,0.0001999,2]
[357951415,1744613446296,-315.798123,0.0001999,2]
[357951417,1744613446306,-315.798123,0.0001999,2]
[357951419,1744613446315,-1863.026998,0.0001999,2]
[357951421,1744613446324,-1863.026998,0.0001999,2]
[357951423,1744613446333,-151.0,0.0001999,2]
[357951424,1744613446343,-151.0,0.0001999,2]
[357951427,1744613446352,-259.107592,0.0001999,2]
[357951428,1744613446362,-199.67832633,0.0001999,2]
[357951431,1744613446372,-151.0,0.0001999,2]
[357951432,1744613446381,-151.0,0.0001999,2]
[357951434,1744613446391,-284.743014,0.0001999,2]
[357951436,1744613446401,-1287.0,0.00019998,2]
[357951439,1744613446410,-2047.0,0.00019998,2]
[357951441,1744613446420,-1328.0,0.00019998,2]
[357951442,1744613446429,-791.0,0.00019998,2]
[357951444,1744613446439,-1438.0,0.00019998,2]
[357951446,1744613446448,-907.0,0.00019998,2]
[357951448,1744613446457,-545.0,0.00019998,2]
[357951450,1744613446466,-1279.0,0.00019998,2]
[357951452,1744613446477,-4148.0,0.00019998,2]
[357951453,1744613446487,-630.725,0.00019998,2]
[357951454,1744613446496,-2559.774,0.00019998,2]
[357951455,1744613446505,-150.0,0.00019998,2]
[357951456,1744613446514,-194.0,0.00019998,2]
[357951457,1744613446522,-152.0,0.00019998,2]
[357951458,1744613446532,-150.0,0.00019998,2]
[357951459,1744613446541,-1000.79690213,0.00019999,2]
[357951460,1744613446550,-300.0,0.00019999,2]
[357951461,1744613446559,-300.0,0.00019999,2]
[357951462,1744613446568,-676.03545945,0.00019999,2]
[357951463,1744613446577,-2000.0,0.00019999,2]
[357951464,1744613446586,-595.54791246,0.00019999,2]
[357951466,1744613446595,-151.0,0.00019999,2]
[357951468,1744613446605,-190.729831,0.00019999,2]
[357951470,1744613446614,-190.729831,0.00019999,2]
[357951472,1744613446624,-539.0,0.00019999,2]
[357951474,1744613446633,-69089.73932091,0.0002,2]
[357951554,1744613575166,500.0,0.00018264,2]
[357951555,1744613717919,200.0,0.00018932,7]
[357951556,1744614101784,200.0,0.00018365,2]
[357951557,1744614120423,500.0,0.00018264,2]
[357951558,1744614299011,561.6,0.0001642,2]
[357951559,1744614315989,250.0,0.00018317,2]
[357951560,1744614388693,152.0,0.00019804,3]
[357951561,1744614408088,-1061.04,0.00018557,2]
[357951562,1744614408111,-203.99261404,0.00018577,2]
[357951563,1744614514774,1122.36611533,0.00019782,5]
[357951564,1744614570639,221.79263588,0.000199,3]
[357951565,1744614585161,-265.087764,0.000226,30]
[357951566,1744614585221,-265.087764,0.000231,30]
[357951567,1744614585273,-500.59295611,0.00023318,120]
[357951568,1744614585317,-1223.24851679,0.00023318,120]
[357951569,1744614585365,-265.087764,0.000236,30]
[357951570,1744614585415,-151.361988,0.000236,30]
[357951571,1744614585466,-265.087764,0.000241,30]
[357951572,1744614585510,-151.361988,0.000241,30]
[357951573,1744614585561,-159.575704,0.000245,30]
[357951574,1744614585608,-755064.64226157,0.00025,120]
[357951575,1744614631708,-970.99304133,0.00018577,2]
[357951576,1744614631721,-2215.04214463,0.00018577,2]
[357951577,1744614631731,-300.0,0.00018676,2]
[357951578,1744614631741,-300.0,0.00018676,2]
[357951579,1744614631754,-8662.52652093,0.00018677,2]
[357951580,1744614631766,-2772.32688309,0.00018677,2]
[357951581,1744614631779,-1163.53,0.00018677,2]
[357951582,1744614631791,-718.889993,0.00018677,2]
[357951583,1744614631821,-5000.00297171,0.00018677,2]
[357951584,1744614631834,-927.61514,0.00018677,2]
[357951585,1744614631846,-1858.43467437,0.00018677,2]
[357951586,1744614631858,-365.19994533,0.00018677,2]
[357951587,1744614631870,-312.5,0.00018677,2]
[357951588,1744614632147,-1063.69411739,0.00018677,2]
[357951589,1744614632159,-986.88975418,0.00018677,2]
[357951590,1744614632168,-356.13524735,0.00018684,2]
[357951592,1744614632186,-205.46475265,0.00018684,2]
[357951594,1744614632195,-743.43524735,0.00018836,2]
[357951596,1744614632207,-256.56475265,0.00018836,2]
[357951598,1744614632216,-909.69807376,0.00018887,2]
[357951600,1744614632227,-610.44814184,0.00018887,2]
[357951601,1744614632238,-884.06056073,0.00018887,2]
[357951602,1744614632249,-562.5,0.00018887,2]
[357951603,1744614632260,-1073.90425003,0.00018887,2]
[357951607,1744614637820,-453.12999309,0.00018887,2]
[357951608,1744614637864,-4792.68487853,0.00018887,2]
[357951609,1744614637899,-358.33485164,0.00018887,2]
[357951610,1744614637911,-24598.19200333,0.00018887,2]
[357951611,1744614637921,-526.55003253,0.00018999,2]
[357951612,1744614637930,-183.07776595,0.00018999,2]
[357951613,1744614637938,-11283.36516051,0.00019,2]
[357951614,1744614637947,-6630.7785264,0.00019,2]
[357951615,1744614637960,-2078.00967695,0.00019,2]
[357951616,1744614637972,-1235.0,0.00019,2]
[357951617,1744614637984,-4850.43578301,0.00019,2]
[357951618,1744614638004,-7999.03364837,0.00019,2]
[357951619,1744614638014,-250.0,0.00019,2]
[357951620,1744614638025,-250.0,0.00019,2]
[357951621,1744614638034,-308.0,0.00019,2]
[357951622,1744614638047,-985.64829769,0.00019001,2]
[357951623,1744614638056,-632.86,0.00019016,2]
[357951624,1744614638066,-500.19849729,0.00019078,2]
[357951625,1744614638075,-3288.79957632,0.00019078,2]
[357951626,1744614638085,-670.62945934,0.00019078,2]
[357951627,1744614638095,-263.0498,0.00019078,2]
[357951628,1744614638105,-300.7688,0.00019078,2]
[357951629,1744614638114,-589.103,0.00019078,2]
[357951630,1744614638124,-207.4,0.00019166,2]
[357951631,1744614638133,-894.07,0.00019168,2]
[357951632,1744614638143,-3288.7995763,0.00019169,2]
[357951633,1744614638152,-670.62945932,0.00019169,2]
[357951634,1744614638161,-199.52997518,0.00019173,2]
[357951635,1744614638171,-543.85913031,0.00019173,2]
[357951636,1744614638180,-503.37660031,0.00019173,2]
[357951637,1744614638190,-155.72524022,0.00019173,2]
[357951638,1744614638200,-166.74628555,0.00019173,2]
[357951639,1744614638210,-169.20273396,0.00019173,2]
[357951640,1744614638219,-500.0,0.00019173,2]
[357951641,1744614638229,-206.98817988,0.00019173,2]
[357951642,1744614638239,-379.24039114,0.00019173,2]
[357951643,1744614638249,-159.62537102,0.00019173,2]
[357951644,1744614638258,-236.03045731,0.00019173,2]
[357951645,1744614638268,-160.9476933,0.00019173,2]
[357951646,1744614638277,-514.90291555,0.00019173,2]
[357951647,1744614638287,-500.91538115,0.00019173,2]
[357951648,1744614638296,-500.0,0.00019173,2]
[357951649,1744614638306,-208.20637699,0.00019177,2]
[357951650,1744614638316,-188.38607106,0.00019177,2]
[357951651,1744614638326,-500.0,0.00019178,2]
[357951652,1744614638335,-505.78761578,0.00019178,2]
[357951653,1744614638345,-500.0,0.00019178,2]
[357951654,1744614638355,-500.0,0.00019178,2]
[357951655,1744614638364,-500.0,0.00019178,2]
[357951656,1744614638374,-570.9555202,0.00019178,2]
[357951657,1744614638384,-500.0,0.00019178,2]
[357951659,1744614638397,-502.76362376,0.00019178,2]
[357951661,1744614638406,-542.24728583,0.00019178,2]
[357951663,1744614638416,-500.0,0.00019178,2]
[357951665,1744614638426,-500.0,0.00019178,2]
[357951667,1744614638436,-500.0,0.00019178,2]
[357951669,1744614638446,-500.0,0.00019178,2]
[357951671,1744614638456,-457.5434163,0.00019178,2]
[357951673,1744614638467,-256.58323614,0.00019178,2]
[357951675,1744614638477,-529.87870699,0.00019178,2]
[357951677,1744614638487,-410.79101219,0.00019178,2]
[357951678,1744614638496,-500.0,0.00019178,2]
[357951680,1744614638506,-500.0,0.00019178,2]
[357951682,1744614638516,-500.0,0.00019178,2]
[357951684,1744614638527,-500.0,0.00019178,2]
[357951686,1744614638536,-500.0,0.00019178,2]
[357951688,1744614638546,-500.61146988,0.00019178,2]
[357951689,1744614638556,-500.0,0.00019178,2]
[357951691,1744614638566,-617.90578621,0.00019178,2]
[357951693,1744614638576,-551.70581656,0.00019178,2]
[357951695,1744614638585,-500.0,0.00019178,2]
[357951697,1744614638595,-500.0,0.00019178,2]
[357951699,1744614638605,-551.9781474,0.00019178,2]
[357951701,1744614638615,-500.0,0.00019178,2]
[357951703,1744614638625,-555.57791623,0.00019178,2]
[357951705,1744614638635,-597.23,0.00019178,2]
[357951707,1744614638645,-553.03924211,0.00019178,2]
[357951709,1744614638654,-564.5363804,0.00019178,2]
[357951711,1744614638664,-500.0,0.00019178,2]
[357951713,1744614638674,-500.0,0.00019178,2]
[357951715,1744614638683,-500.0,0.00019178,2]
[357951717,1744614638693,-500.0,0.00019178,2]
[357951719,1744614638703,-500.0,0.00019178,2]
[357951721,1744614638713,-500.0,0.00019178,2]
[357951723,1744614638723,-500.0,0.00019178,2]
[357951725,1744614638732,-645.87629783,0.00019178,2]
[357951727,1744614638741,-500.0,0.00019178,2]
[357951729,1744614638751,-500.0,0.00019178,2]
[357951731,1744614638760,-500.0,0.00019178,2]
[357951733,1744614638770,-525.06123615,0.00019178,2]
[357951735,1744614638779,-504.65800727,0.00019178,2]
[357951736,1744614638790,-500.0,0.00019178,2]
[357951738,1744614638799,-500.0,0.00019178,2]
[357951740,1744614638808,-500.0,0.00019178,2]
[357951742,1744614638818,-500.0,0.00019178,2]
[357951744,1744614638828,-500.0,0.00019178,2]
[357951746,1744614638837,-501.35082812,0.00019178,2]
[357951748,1744614638846,-500.0,0.00019178,2]
[357951750,1744614638855,-500.0,0.00019178,2]
[357951751,1744614638865,-500.0,0.00019178,2]
[357951753,1744614638874,-500.0,0.00019178,2]
[357951754,1744614638883,-500.0,0.00019178,2]
[357951756,1744614638892,-500.0,0.00019178,2]
[357951757,1744614638902,-500.0,0.00019178,2]
[357951759,1744614638911,-500.0,0.00019178,2]
[357951761,1744614638920,-500.0,0.00019178,2]
[357951762,1744614638930,-500.0,0.00019178,2]
[357951764,1744614638939,-523.0892474,0.00019178,2]
[357951766,1744614638949,-500.0,0.00019178,2]
[357951767,1744614638959,-510.0693387,0.00019178,2]
[357951769,1744614638968,-546.84165354,0.00019178,2]
[357951770,1744614638978,-500.0,0.00019178,2]
[357951772,1744614638987,-553.36497567,0.00019178,2]
[357951774,1744614638997,-500.0,0.00019178,2]
[357951775,1744614639006,-506.88463643,0.00019178,2]
[357951777,1744614639015,-500.0,0.00019178,2]
[357951778,1744614639025,-500.0,0.00019178,2]
[357951780,1744614639035,-500.0,0.00019178,2]
[357951782,1744614639044,-508.04570566,0.00019178,2]
[357951783,1744614639054,-500.0,0.00019178,2]
[357951785,1744614639064,-500.0,0.00019178,2]
[357951786,1744614639073,-500.0,0.00019178,2]
[357951788,1744614639083,-500.0,0.00019178,2]
[357951790,1744614639093,-500.0,0.00019178,2]
[357951791,1744614639103,-500.0,0.00019178,2]
[357951793,1744614639114,-500.0,0.00019178,2]
[357951795,1744614639124,-500.0,0.00019178,2]
[357951796,1744614639134,-500.0,0.00019178,2]
[357951798,1744614639145,-511.47842897,0.00019178,2]
[357951800,1744614639157,-524.41034566,0.00019178,2]
[357951801,1744614639167,-500.0,0.00019178,2]
[357951803,1744614639177,-500.0,0.00019178,2]
[357951804,1744614639186,-500.0,0.00019178,2]
[357951806,1744614639195,-500.0,0.00019178,2]
[357951808,1744614639205,-213.70143782,0.00019178,2]
[357951810,1744614639214,-500.0,0.00019178,2]
[357951811,1744614639223,-500.0,0.00019178,2]
[357951813,1744614639232,-500.0,0.00019178,2]
[357951815,1744614639241,-500.0,0.00019178,2]
[357951817,1744614639252,-500.0,0.00019178,2]
[357951818,1744614639262,-500.0,0.00019178,2]
[357951820,1744614639271,-500.0,0.00019178,2]
[357951822,1744614639281,-500.0,0.00019178,2]
[357951823,1744614639291,-500.0,0.00019178,2]
[357951825,1744614639300,-500.0,0.00019178,2]
[357951827,1744614639309,-548.53863734,0.00019178,2]
[357951828,1744614639319,-471.29487162,0.00019178,2]
[357951830,1744614639328,-500.0,0.00019178,2]
[357951832,1744614639338,-518.34002697,0.00019178,2]
[357951833,1744614639347,-509.5417414,0.00019178,2]
[357951835,1744614639356,-500.0,0.00019178,2]
[357951837,1744614639365,-500.0,0.00019178,2]
[357951839,1744614639375,-500.0,0.00019178,2]
[357951840,1744614639384,-500.0,0.00019178,2]
[357951842,1744614639398,-500.0,0.00019178,2]
[357951843,1744614639407,-1371.31,0.00019178,2]
[357951845,1744614639417,-500.0,0.00019178,2]
[357951847,1744614639426,-500.0,0.00019178,2]
[357951848,1744614639436,-500.0,0.00019178,2]
[357951850,1744614639446,-353.44135402,0.00019178,2]
[357951852,1744614639456,-500.0,0.00019178,2]
[357951853,1744614639465,-500.0,0.00019178,2]
[357951855,1744614639478,-500.0,0.00019178,2]
[357951857,1744614639488,-500.0,0.00019178,2]
[357951859,1744614639497,-500.0,0.00019178,2]
[357951860,1744614639507,-500.0,0.00019178,2]
[357951862,1744614639516,-500.0,0.00019178,2]
[357951864,1744614639526,-500.0,0.00019178,2]
[357951865,1744614639535,-477.18877243,0.00019178,2]
[357951867,1744614639545,-500.0,0.00019178,2]
[357951869,1744614639556,-605.11,0.00019178,2]
[357951871,1744614639566,-500.0,0.00019178,2]
[357951873,1744614639586,-500.0,0.00019178,2]
[357951875,1744614639596,-500.0,0.00019178,2]
[357951894,1744614639838,-505.09,0.00019178,2]
[357951896,1744614639849,-500.0,0.00019178,2]
[357951898,1744614639859,-500.0,0.00019178,2]
[357951900,1744614639868,-500.0,0.00019178,2]
[357951901,1744614639878,-502.39293385,0.00019178,2]
[357951903,1744614639887,-500.0,0.00019178,2]
[357951905,1744614639897,-521.40357001,0.00019178,2]
[357951906,1744614639907,-500.0,0.00019178,2]
[357951908,1744614639917,-500.0,0.00019178,2]
[357951910,1744614639927,-212.29954784,0.00019178,2]
[357951912,1744614639937,-523.77271008,0.00019178,2]
[357951914,1744614639947,-500.0,0.00019178,2]
[357951915,1744614639956,-500.0,0.00019178,2]
[357951917,1744614639965,-500.0,0.00019178,2]
[357951919,1744614639975,-500.0,0.00019178,2]
[357951921,1744614639985,-500.0,0.00019178,2]
[357951923,1744614639995,-500.0,0.00019178,2]
[357951924,1744614640005,-500.0,0.00019178,2]
[357951926,1744614640014,-500.0,0.00019178,2]
[357951928,1744614640024,-500.0,0.00019178,2]
[357951930,1744614640034,-500.0,0.00019178,2]
[357951932,1744614640044,-500.0,0.00019178,2]
[357951933,1744614640054,-378.32788812,0.00019178,2]
[357951935,1744614640064,-500.0,0.00019178,2]
[357951937,1744614640073,-500.0,0.00019178,2]
[357951939,1744614640084,-500.0,0.00019178,2]
[357951940,1744614640093,-500.0,0.00019178,2]
[357951942,1744614640102,-500.0,0.00019178,2]
[357951944,1744614640112,-500.0,0.00019178,2]
[357951945,1744614640121,-500.0,0.00019178,2]
[357951947,1744614640131,-500.0,0.00019178,2]
[357951949,1744614640141,-500.0,0.00019178,2]
[357951951,1744614640150,-500.0,0.00019178,2]
[357951952,1744614640160,-500.0,0.00019178,2]
[357951954,1744614640170,-500.0,0.00019178,2]
[357951956,1744614640180,-500.0,0.00019178,2]
[357951958,1744614640190,-500.0,0.00019178,2]
[357951960,1744614640200,-439.94112039,0.00019178,2]
[357951962,1744614640210,-505.04499758,0.00019178,2]
[357951963,1744614640221,-500.0,0.00019178,2]
[357951964,1744614640230,-500.0,0.00019178,2]
[357951965,1744614640240,-577.70552729,0.00019178,2]
[357951966,1744614640251,-500.0,0.00019178,2]
[357951967,1744614640260,-500.0,0.00019178,2]
[357951968,1744614640270,-500.0,0.00019178,2]
[357951969,1744614640280,-500.0,0.00019178,2]
[357951970,1744614640291,-500.0,0.00019178,2]
[357951971,1744614640301,-500.0,0.00019178,2]
[357951972,1744614640310,-500.0,0.00019178,2]
[357951973,1744614640320,-500.0,0.00019178,2]
[357951974,1744614640331,-216.02,0.00019178,2]
[357951975,1744614640344,-500.0,0.00019178,2]
[357951976,1744614640354,-294.09177355,0.00019178,2]
[357951977,1744614640364,-500.0,0.00019178,2]
[357951978,1744614640375,-221.34441662,0.00019178,2]
[357951979,1744614640384,-488.20615567,0.00019178,2]
[357951981,1744614640398,-500.0,0.00019178,2]
[357951982,1744614640408,-500.0,0.00019178,2]
[357951983,1744614640417,-500.0,0.00019178,2]
[357951985,1744614640427,-500.0,0.00019178,2]
[357951987,1744614640439,-500.0,0.00019178,2]
[357951989,1744614640449,-529.8286296,0.00019178,2]
[357951990,1744614640460,-500.0,0.00019178,2]
[357951992,1744614640471,-500.0,0.00019178,2]
[357951993,1744614640482,-500.0,0.00019178,2]
[357951995,1744614640492,-565.99,0.00019178,2]
[357951997,1744614640501,-500.0,0.00019178,2]
[357951999,1744614640511,-533.91970149,0.00019178,2]
[357952001,1744614640521,-565.39,0.00019178,2]
[357952003,1744614640533,-500.0,0.00019178,2]
[357952005,1744614640546,-500.0,0.00019178,2]
[357952007,1744614640557,-500.0,0.00019178,2]
[357952009,1744614640567,-500.0,0.00019178,2]
[357952011,1744614640578,-500.0,0.00019178,2]
[357952013,1744614640588,-500.0,0.00019178,2]
[357952015,1744614640598,-500.0,0.00019178,2]
[357952017,1744614640608,-500.0,0.00019178,2]
[357952019,1744614640618,-500.0,0.00019178,2]
[357952021,1744614640628,-513.01,0.00019178,2]
[357952023,1744614640639,-500.0,0.00019178,2]
[357952025,1744614640649,-500.0,0.00019178,2]
[357952027,1744614640659,-500.0,0.00019178,2]
[357952029,1744614640670,-500.0,0.00019178,2]
[357952031,1744614640680,-504.3,0.00019178,2]
[357952033,1744614640690,-500.0,0.00019178,2]
[357952035,1744614640700,-500.0,0.00019178,2]
[357952037,1744614640710,-500.0,0.00019178,2]
[357952039,1744614640720,-500.0,0.00019178,2]
[357952041,1744614640730,-500.0,0.00019178,2]
[357952043,1744614640739,-500.0,0.00019178,2]
[357952045,1744614640749,-500.0,0.00019178,2]
[357952046,1744614640759,-500.0,0.00019178,2]
[357952048,1744614640769,-500.0,0.00019178,2]
[357952050,1744614640778,-543.72,0.00019178,2]
[357952052,1744614640788,-375.03878086,0.00019178,2]
[357952054,1744614640798,-608.0779036,0.00019178,2]
[357952056,1744614640807,-295.21092625,0.00019178,2]
[357952058,1744614640818,-500.0,0.00019178,2]
[357952060,1744614640828,-500.0,0.00019178,2]
[357952062,1744614640838,-500.0,0.00019178,2]
[357952064,1744614640849,-500.0,0.00019178,2]
[357952066,1744614640860,-526.96041092,0.00019178,2]
[357952068,1744614640870,-500.0,0.00019178,2]
[357952070,1744614640880,-500.0,0.00019178,2]
[357952072,1744614640890,-500.0,0.00019178,2]
[357952074,1744614640900,-500.0,0.00019178,2]
[357952076,1744614640911,-500.0,0.00019178,2]
[357952078,1744614640921,-500.0,0.00019178,2]
[357952080,1744614640931,-543.67831194,0.00019178,2]
[357952082,1744614640940,-500.0,0.00019178,2]
[357952084,1744614640950,-500.0,0.00019178,2]
[357952086,1744614640960,-524.15520614,0.00019178,2]
[357952088,1744614640971,-398.0934683,0.00019178,2]
[357952090,1744614640981,-500.0,0.00019178,2]
[357952092,1744614640991,-500.0,0.00019178,2]
[357952094,1744614641001,-617.59,0.00019178,2]
[357952096,1744614641010,-500.0,0.00019178,2]
[357952098,1744614641020,-296.65018644,0.00019178,2]
[357952100,1744614641034,-628.19210448,0.00019178,2]
[357952102,1744614641047,-524.11728398,0.00019178,2]
[357952104,1744614641057,-500.0,0.00019178,2]
[357952106,1744614641066,-500.0,0.00019178,2]
[357952108,1744614641076,-520.92325033,0.00019178,2]
[357952110,1744614641086,-552.34,0.00019178,2]
[357952112,1744614641096,-500.0,0.00019178,2]
[357952114,1744614641105,-500.0,0.00019178,2]
[357952116,1744614641115,-500.0,0.00019178,2]
[357952118,1744614641125,-517.85095251,0.00019178,2]
[357952120,1744614641134,-500.0,0.00019178,2]
[357952122,1744614641146,-500.0,0.00019178,2]
[357952124,1744614641155,-339.35533493,0.00019178,2]
[357952126,1744614641166,-500.0,0.00019178,2]
[357952128,1744614641176,-500.0,0.00019178,2]
[357952130,1744614641186,-500.0,0.00019178,2]
[357952132,1744614641196,-508.62,0.00019178,2]
[357952134,1744614641206,-500.0,0.00019178,2]
[357952136,1744614641216,-217.02953859,0.00019178,2]
[357952138,1744614641226,-500.0,0.00019178,2]
[357952140,1744614641235,-610.12,0.00019178,2]
[357952142,1744614641245,-500.0,0.00019178,2]
[357952144,1744614641255,-562.44,0.00019178,2]
[357952146,1744614641265,-500.0,0.00019178,2]
[357952148,1744614641275,-439.37715638,0.00019178,2]
[357952150,1744614641285,-500.0,0.00019178,2]
[357952152,1744614641296,-500.0,0.00019178,2]
[357952154,1744614641306,-500.0,0.00019178,2]
[357952156,1744614641316,-503.25362037,0.00019178,2]
[357952158,1744614641325,-500.0,0.00019178,2]
[357952160,1744614641335,-500.0,0.00019178,2]
[357952162,1744614641345,-572.29,0.00019178,2]
[357952164,1744614641355,-517.87552094,0.00019178,2]
[357952166,1744614641364,-500.0,0.00019178,2]
[357952168,1744614641374,-500.0,0.00019178,2]
[357952170,1744614641383,-500.0,0.00019178,2]
[357952172,1744614641395,-500.0,0.00019178,2]
[357952174,1744614641406,-500.0,0.00019178,2]
[357952176,1744614641416,-500.0,0.00019178,2]
[357952178,1744614641425,-500.0,0.00019178,2]
[357952180,1744614641435,-500.0,0.00019178,2]
[357952182,1744614641445,-189.29305535,0.00019178,2]
[357952184,1744614641455,-500.0,0.00019178,2]
[357952185,1744614641465,-528.70401112,0.00019178,2]
[357952187,1744614641477,-500.0,0.00019178,2]
[357952190,1744614641487,-500.0,0.00019178,2]
[357952191,1744614641496,-500.0,0.00019178,2]
[357952194,1744614641506,-500.0,0.00019178,2]
[357952195,1744614641516,-500.0,0.00019178,2]
[357952198,1744614641526,-500.0,0.00019178,2]
[357952199,1744614641535,-465.51,0.00019178,2]
[357952201,1744614641545,-500.0,0.00019178,2]
[357952203,1744614641555,-500.0,0.00019178,2]
[357952205,1744614641565,-500.0,0.00019178,2]
[357952207,1744614641575,-500.0,0.00019178,2]
[357952209,1744614641585,-500.0,0.00019178,2]
[357952211,1744614641594,-500.0,0.00019178,2]
[357952213,1744614641604,-500.0,0.00019178,2]
[357952215,1744614641614,-500.0,0.00019178,2]
[357952217,1744614641625,-500.0,0.00019178,2]
[357952219,1744614641635,-550.21169465,0.00019178,2]
[357952221,1744614641645,-500.0,0.00019178,2]
[357952223,1744614641655,-500.0,0.00019178,2]
[357952225,1744614641665,-524.48121111,0.00019178,2]
[357952227,1744614641674,-500.0,0.00019178,2]
[357952229,1744614641684,-556.16146885,0.00019178,2]
[357952230,1744614641694,-500.0,0.00019178,2]
[357952232,1744614641704,-500.0,0.00019178,2]
[357952234,1744614641715,-500.0,0.00019178,2]